[Event "Late-Titled-Tuesday-Blitz-June-18-2024"]
[Site "Chess.com"]
[Date "2024.06.18"]
[Round "2"]
[White "AungTZ"]
[Black "A4RookA3"]
[Result "0-1"]
[WhiteElo "1974"]
[BlackElo "2431"]
[TimeControl "180+1"]
[EndTime "14:19:19 PDT"]
[Termination "A4RookA3 won on time"]

1. e4 {[%clk 0:02:55.7]} 1... Nf6 {[%clk 0:03:00.9]} 2. e5 {[%clk 0:02:55]} 2...
Nd5 {[%clk 0:03:00.9]} 3. d4 {[%clk 0:02:55.2]} 3... d6 {[%clk 0:03:00.1]} 4. c4
{[%clk 0:02:55.1]} 4... Nb6 {[%clk 0:03:00.1]} 5. Nf3 {[%clk 0:02:55.6]} 5... g6
{[%clk 0:02:58.9]} 6. Nc3 {[%clk 0:02:49.3]} 6... Bg7 {[%clk 0:02:58.1]} 7. Bf4
{[%clk 0:02:49.9]} 7... O-O {[%clk 0:02:56.6]} 8. Qd2 {[%clk 0:02:48.2]} 8...
Nc6 {[%clk 0:02:44.3]} 9. O-O-O {[%clk 0:02:44.4]} 9... Bg4 {[%clk 0:02:41.5]}
10. exd6 {[%clk 0:02:43.6]} 10... cxd6 {[%clk 0:02:39.9]} 11. Bh6 {[%clk
0:02:40.2]} 11... Rc8 {[%clk 0:02:22.4]} 12. Bxg7 {[%clk 0:02:01]} 12... Kxg7
{[%clk 0:02:23.3]} 13. Be2 {[%clk 0:01:52.2]} 13... Bxf3 {[%clk 0:02:21.7]} 14.
gxf3 {[%clk 0:01:51.6]} 14... d5 {[%clk 0:02:09.4]} 15. c5 {[%clk 0:01:48.8]}
15... Nd7 {[%clk 0:01:57.5]} 16. h4 {[%clk 0:01:45.6]} 16... h5 {[%clk
0:01:46.3]} 17. Nxd5 {[%clk 0:01:39.7]} 17... e5 {[%clk 0:01:44.8]} 18. dxe5
{[%clk 0:01:30.4]} 18... Ncxe5 {[%clk 0:01:34.6]} 19. Kb1 {[%clk 0:01:22.3]}
19... Rxc5 {[%clk 0:01:32.1]} 20. f4 {[%clk 0:01:19.1]} 20... Nc6 {[%clk
0:01:18.4]} 21. Nc3 {[%clk 0:01:01.4]} 21... Ncb8 {[%clk 0:01:17.1]} 22. Bb5
{[%clk 0:00:54.5]} 22... Rc7 {[%clk 0:00:48.2]} 23. Nd5 {[%clk 0:00:50.3]} 23...
Rc5 {[%clk 0:00:46.9]} 24. Qd4+ {[%clk 0:00:44.7]} 24... Kh6 {[%clk 0:00:34.4]}
25. Bxd7 {[%clk 0:00:35.9]} 25... Nxd7 {[%clk 0:00:33.4]} 26. f5 {[%clk
0:00:18.6]} 26... Qa5 {[%clk 0:00:02.1]} 27. Nc3 {[%clk 0:00:14.2]} 27... Nb6
{[%clk 0:00:01.2]} 28. fxg6 {[%clk 0:00:14.1]} 28... fxg6 {[%clk 0:00:01.4]} 29.
Qe3+ {[%clk 0:00:13.7]} 29... Kh7 {[%clk 0:00:01.5]} 30. Qe7+ {[%clk 0:00:13.1]}
30... Kg8 {[%clk 0:00:02.2]} 31. Rhg1 {[%clk 0:00:12.3]} 31... g5 {[%clk
0:00:01.3]} 32. hxg5 {[%clk 0:00:10.5]} 32... Rf7 {[%clk 0:00:01.5]} 33. Qe8+
{[%clk 0:00:07.6]} 33... Kg7 {[%clk 0:00:02]} 34. g6 {[%clk 0:00:06.6]} 34...
Rfc7 {[%clk 0:00:02.5]} 35. Qe6 {[%clk 0:00:05.3]} 35... Rxc3 {[%clk 0:00:01.5]}
36. bxc3 {[%clk 0:00:04.9]} 36... Qb5+ {[%clk 0:00:01.2]} 37. Qb3 {[%clk
0:00:04.4]} 37... Qc5 {[%clk 0:00:01.9]} 38. Qb2 {[%clk 0:00:04.2]} 38... Nc4
{[%clk 0:00:02.3]} 39. Qb4 {[%clk 0:00:02.7]} 39... Qc6 {[%clk 0:00:02.5]} 40.
Rd6 {[%clk 0:00:01.3]} 40... Qf3 {[%clk 0:00:01.9]} 41. Rgd1 {[%clk 0:00:01.7]}
41... Qf5+ {[%clk 0:00:02.6]} 0-1

[Event "Late-Titled-Tuesday-Blitz-June-18-2024"]
[Site "Chess.com"]
[Date "2024.06.18"]
[Round "2"]
[White "enriquebutti"]
[Black "CruzWilliam"]
[Result "0-1"]
[WhiteElo "2092"]
[BlackElo "2453"]
[TimeControl "180+1"]
[EndTime "14:19:31 PDT"]
[Termination "CruzWilliam won by resignation"]

1. d4 {[%clk 0:03:00.9]} 1... Nf6 {[%clk 0:02:59.8]} 2. Nf3 {[%clk 0:03:00.1]}
2... g6 {[%clk 0:03:00.1]} 3. c4 {[%clk 0:02:58.5]} 3... Bg7 {[%clk 0:02:59.9]}
4. Nc3 {[%clk 0:02:58.3]} 4... O-O {[%clk 0:03:00.4]} 5. e4 {[%clk 0:02:57.9]}
5... d6 {[%clk 0:03:00.9]} 6. h3 {[%clk 0:02:57.5]} 6... e5 {[%clk 0:03:00.3]}
7. d5 {[%clk 0:02:56.1]} 7... Na6 {[%clk 0:02:54.8]} 8. Bg5 {[%clk 0:02:50.4]}
8... h6 {[%clk 0:02:53.6]} 9. Be3 {[%clk 0:02:48.6]} 9... Nc5 {[%clk 0:02:53]}
10. Nd2 {[%clk 0:02:47.9]} 10... a5 {[%clk 0:02:52.3]} 11. g4 {[%clk 0:02:42.8]}
11... c6 {[%clk 0:02:52]} 12. Rb1 {[%clk 0:02:34.7]} 12... cxd5 {[%clk
0:02:48.8]} 13. cxd5 {[%clk 0:02:32.4]} 13... Bd7 {[%clk 0:02:45.8]} 14. Bxc5
{[%clk 0:02:28.7]} 14... dxc5 {[%clk 0:02:44]} 15. a4 {[%clk 0:02:25.9]} 15...
Ne8 {[%clk 0:02:41.2]} 16. Bb5 {[%clk 0:02:19]} 16... Nd6 {[%clk 0:02:40.1]} 17.
Qe2 {[%clk 0:02:07.8]} 17... Bf6 {[%clk 0:02:28.1]} 18. Nc4 {[%clk 0:02:02.3]}
18... Nxc4 {[%clk 0:02:13.7]} 19. Qxc4 {[%clk 0:02:01.2]} 19... b6 {[%clk
0:02:06.5]} 20. Bxd7 {[%clk 0:01:55.4]} 20... Qxd7 {[%clk 0:02:05]} 21. Kd1
{[%clk 0:01:53.4]} 21... Bh4 {[%clk 0:02:01.9]} 22. f3 {[%clk 0:01:47.1]} 22...
f5 {[%clk 0:02:01.6]} 23. Kc2 {[%clk 0:01:38.1]} 23... Bf2 {[%clk 0:01:59.7]}
24. Qb5 {[%clk 0:01:32.5]} 24... Qd6 {[%clk 0:01:46.2]} 25. Qc6 {[%clk
0:01:25.8]} 25... Qxc6 {[%clk 0:01:44.5]} 26. dxc6 {[%clk 0:01:25.4]} 26... Bd4
{[%clk 0:01:34.2]} 27. Nd5 {[%clk 0:01:24.8]} 27... fxe4 {[%clk 0:01:30.9]} 28.
fxe4 {[%clk 0:01:24.4]} 28... c4 {[%clk 0:01:26.9]} 29. Rbf1 {[%clk 0:01:15.7]}
29... Kg7 {[%clk 0:01:25.4]} 30. c7 {[%clk 0:01:13.4]} 30... Rac8 {[%clk
0:01:13.6]} 31. Rxf8 {[%clk 0:01:08.1]} 31... Kxf8 {[%clk 0:01:07.8]} 32. Rf1+
{[%clk 0:01:07]} 32... Kg7 {[%clk 0:01:07.1]} 33. Rf6 {[%clk 0:01:05]} 33...
Rxc7 {[%clk 0:00:59.4]} 34. Rxg6+ {[%clk 0:01:01.1]} 34... Kxg6 {[%clk
0:00:59.2]} 35. Nxc7 {[%clk 0:01:00.7]} 35... Kg5 {[%clk 0:00:42.8]} 36. Ne6+
{[%clk 0:00:48.7]} 36... Kf6 {[%clk 0:00:42.5]} 37. Nc7 {[%clk 0:00:46.1]} 37...
Bf2 {[%clk 0:00:38.7]} 38. Kc3 {[%clk 0:00:44.5]} 38... Bd4+ {[%clk 0:00:37.8]}
39. Kxc4 {[%clk 0:00:44.1]} 39... Bxb2 {[%clk 0:00:38]} 40. Nd5+ {[%clk
0:00:43.5]} 40... Kg5 {[%clk 0:00:36.7]} 41. Nxb6 {[%clk 0:00:43]} 41... Kh4
{[%clk 0:00:36.8]} 42. Kd5 {[%clk 0:00:42.3]} 42... Kxh3 {[%clk 0:00:36.2]} 43.
Nc4 {[%clk 0:00:41.9]} 43... Bc3 {[%clk 0:00:26]} 44. Nxe5 {[%clk 0:00:41.3]}
44... Kg3 {[%clk 0:00:26.1]} 45. Ng6 {[%clk 0:00:37.1]} 45... Kxg4 {[%clk
0:00:23.8]} 46. e5 {[%clk 0:00:36.9]} 46... h5 {[%clk 0:00:19.9]} 47. e6 {[%clk
0:00:36.4]} 47... Bf6 {[%clk 0:00:19.7]} 48. Ne5+ {[%clk 0:00:32.9]} 48... Kf5
{[%clk 0:00:17.8]} 49. Nf3 {[%clk 0:00:32.1]} 49... h4 {[%clk 0:00:17.2]} 50.
Kd6 {[%clk 0:00:30.8]} 50... h3 {[%clk 0:00:16.4]} 51. e7 {[%clk 0:00:30]} 51...
Bxe7+ {[%clk 0:00:16.2]} 52. Kxe7 {[%clk 0:00:29.9]} 52... Ke4 {[%clk
0:00:16.9]} 53. Nh2 {[%clk 0:00:28.6]} 53... Kd5 {[%clk 0:00:17.2]} 54. Kd7
{[%clk 0:00:28.4]} 54... Kc4 {[%clk 0:00:17.6]} 55. Kc6 {[%clk 0:00:28.3]} 55...
Kb4 {[%clk 0:00:18.2]} 56. Kb6 {[%clk 0:00:27.9]} 56... Kxa4 {[%clk 0:00:18.4]}
57. Kc5 {[%clk 0:00:27.8]} 57... Kb3 {[%clk 0:00:18.6]} 58. Kd4 {[%clk
0:00:27.4]} 58... a4 {[%clk 0:00:18.9]} 0-1

[Event "Late-Titled-Tuesday-Blitz-June-18-2024"]
[Site "Chess.com"]
[Date "2024.06.18"]
[Round "2"]
[White "larsmandreassen"]
[Black "AustinThomas12345"]
[Result "1/2-1/2"]
[WhiteElo "2231"]
[BlackElo "2476"]
[TimeControl "180+1"]
[EndTime "14:19:33 PDT"]
[Termination "Game drawn by repetition"]

1. d4 {[%clk 0:02:54.5]} 1... Nf6 {[%clk 0:02:57.5]} 2. Nf3 {[%clk 0:02:55.4]}
2... e6 {[%clk 0:02:57.4]} 3. Bg5 {[%clk 0:02:54.9]} 3... Be7 {[%clk 0:02:57.2]}
4. e3 {[%clk 0:02:53.1]} 4... d5 {[%clk 0:02:57.1]} 5. c4 {[%clk 0:02:53.2]}
5... b6 {[%clk 0:02:55.6]} 6. Nc3 {[%clk 0:02:53.4]} 6... Bb7 {[%clk 0:02:55.1]}
7. Qc2 {[%clk 0:02:53.4]} 7... h6 {[%clk 0:02:53.6]} 8. Bh4 {[%clk 0:02:52.7]}
8... Nbd7 {[%clk 0:02:53.7]} 9. Bd3 {[%clk 0:02:51.4]} 9... O-O {[%clk 0:02:52]}
10. O-O {[%clk 0:02:50.4]} 10... dxc4 {[%clk 0:02:45.4]} 11. Bxc4 {[%clk
0:02:49.8]} 11... Bxf3 {[%clk 0:02:45.1]} 12. gxf3 {[%clk 0:02:50.7]} 12... Nh5
{[%clk 0:02:44]} 13. Bg3 {[%clk 0:02:45.6]} 13... Bg5 {[%clk 0:02:41.5]} 14. Nb5
{[%clk 0:02:39.1]} 14... Nxg3 {[%clk 0:02:34.7]} 15. hxg3 {[%clk 0:02:40]} 15...
e5 {[%clk 0:02:31.9]} 16. Bd5 {[%clk 0:02:32.2]} 16... exd4 {[%clk 0:02:16.4]}
17. Bxa8 {[%clk 0:02:30.8]} 17... Qxa8 {[%clk 0:02:17.3]} 18. f4 {[%clk
0:02:11.5]} 18... Bf6 {[%clk 0:01:28.9]} 19. Nxd4 {[%clk 0:02:07.5]} 19... Bxd4
{[%clk 0:01:11]} 20. exd4 {[%clk 0:02:08.4]} 20... Nf6 {[%clk 0:00:58.8]} 21.
Rac1 {[%clk 0:02:00.6]} 21... Qf3 {[%clk 0:00:53.1]} 22. Qc3 {[%clk 0:01:55.3]}
22... Qh5 {[%clk 0:00:51.8]} 23. Kg2 {[%clk 0:01:51.7]} 23... Qd5+ {[%clk
0:00:36.4]} 24. f3 {[%clk 0:01:47.4]} 24... Qxa2 {[%clk 0:00:30.5]} 25. Rf2
{[%clk 0:01:45.2]} 25... Re8 {[%clk 0:00:18.9]} 26. Qxc7 {[%clk 0:01:41.2]}
26... Nd5 {[%clk 0:00:16.9]} 27. Qd7 {[%clk 0:01:33.8]} 27... Ne3+ {[%clk
0:00:16.6]} 28. Kh2 {[%clk 0:01:28]} 28... Re6 {[%clk 0:00:16.8]} 29. Rc8+
{[%clk 0:01:19.3]} 29... Kh7 {[%clk 0:00:15]} 30. Qxf7 {[%clk 0:01:17.6]} 30...
Nf1+ {[%clk 0:00:15.7]} 31. Kg1 {[%clk 0:01:02.6]} 31... Nxg3 {[%clk 0:00:15.2]}
32. Qg8+ {[%clk 0:00:59.8]} 32... Kg6 {[%clk 0:00:15.7]} 33. Rg2 {[%clk
0:00:53.1]} 33... Re1+ {[%clk 0:00:15.5]} 34. Kh2 {[%clk 0:00:53.6]} 34... Rh1+
{[%clk 0:00:05.8]} 35. Kxg3 {[%clk 0:00:53.4]} 35... Qb1 {[%clk 0:00:02]} 36.
Kf2+ {[%clk 0:00:49.6]} 36... Kh5 {[%clk 0:00:01.3]} 37. Qf7+ {[%clk 0:00:47.9]}
37... g6 {[%clk 0:00:01.9]} 38. Qd5+ {[%clk 0:00:44.9]} 38... Kh4 {[%clk
0:00:02.5]} 39. Rg4+ {[%clk 0:00:42]} 39... Kh3 {[%clk 0:00:01.9]} 40. Rg3+
{[%clk 0:00:38.4]} 40... Kh4 {[%clk 0:00:02.5]} 41. Rg4+ {[%clk 0:00:18.4]}
41... Kh3 {[%clk 0:00:02.8]} 42. Rg3+ {[%clk 0:00:11.6]} 42... Kh4 {[%clk
0:00:03.4]} 43. Rg4+ {[%clk 0:00:02.2]} 1/2-1/2

[Event "Late-Titled-Tuesday-Blitz-June-18-2024"]
[Site "Chess.com"]
[Date "2024.06.18"]
[Round "2"]
[White "hoshiboshi"]
[Black "KHBR4"]
[Result "1-0"]
[WhiteElo "2239"]
[BlackElo "2644"]
[TimeControl "180+1"]
[EndTime "14:19:35 PDT"]
[Termination "hoshiboshi won by resignation"]

1. e4 {[%clk 0:03:00.9]} 1... d5 {[%clk 0:02:53.9]} 2. exd5 {[%clk 0:03:00.4]}
2... Qxd5 {[%clk 0:02:53.8]} 3. d4 {[%clk 0:02:59.2]} 3... Nf6 {[%clk 0:02:51]}
4. Nc3 {[%clk 0:02:59.1]} 4... Qa5 {[%clk 0:02:50.5]} 5. Bc4 {[%clk 0:02:56.6]}
5... c6 {[%clk 0:02:49.9]} 6. Nf3 {[%clk 0:02:44.7]} 6... Bg4 {[%clk 0:02:45.7]}
7. h3 {[%clk 0:02:44.4]} 7... Bxf3 {[%clk 0:02:45.4]} 8. Qxf3 {[%clk 0:02:43.8]}
8... e6 {[%clk 0:02:45.3]} 9. Bd2 {[%clk 0:02:41.6]} 9... Qb6 {[%clk 0:02:41.4]}
10. O-O-O {[%clk 0:02:13.7]} 10... Qxd4 {[%clk 0:02:35.1]} 11. Nb5 {[%clk
0:01:44.8]} 11... cxb5 {[%clk 0:01:45.3]} 12. Bxb5+ {[%clk 0:01:36.8]} 12...
Nbd7 {[%clk 0:01:37.1]} 13. Qxb7 {[%clk 0:01:25.4]} 13... Rd8 {[%clk 0:01:12.6]}
14. Ba5 {[%clk 0:00:48.3]} 14... Qf4+ {[%clk 0:01:11.1]} 15. Kb1 {[%clk
0:00:47.4]} 15... Bd6 {[%clk 0:01:11.6]} 16. g3 {[%clk 0:00:41.3]} 16... Qe4
{[%clk 0:01:00.7]} 17. Qxe4 {[%clk 0:00:29.3]} 17... Nxe4 {[%clk 0:01:00.6]} 18.
Rhe1 {[%clk 0:00:29.6]} 18... Ke7 {[%clk 0:00:43.3]} 19. Rxe4 {[%clk 0:00:28.6]}
19... Nb6 {[%clk 0:00:40.7]} 20. Red4 {[%clk 0:00:23.4]} 20... e5 {[%clk
0:00:40.2]} 21. Rxd6 {[%clk 0:00:21]} 21... Rxd6 {[%clk 0:00:40.6]} 22. Bb4
{[%clk 0:00:21.6]} 22... Rd8 {[%clk 0:00:40.8]} 23. a4 {[%clk 0:00:20.8]} 23...
a5 {[%clk 0:00:37.7]} 24. Ba3 {[%clk 0:00:17.2]} 24... f5 {[%clk 0:00:36.3]} 25.
c4 {[%clk 0:00:15.3]} 25... Nc8 {[%clk 0:00:28.6]} 26. Kc2 {[%clk 0:00:14.1]}
26... Ke6 {[%clk 0:00:27.7]} 27. Rxd6+ {[%clk 0:00:13.4]} 27... Nxd6 {[%clk
0:00:24.3]} 28. c5 {[%clk 0:00:12.6]} 28... Nxb5 {[%clk 0:00:20.2]} 29. axb5
{[%clk 0:00:13.5]} 29... Rb8 {[%clk 0:00:19.9]} 30. b6 {[%clk 0:00:12.3]} 30...
Kd5 {[%clk 0:00:20.5]} 31. Kb3 {[%clk 0:00:12.3]} 31... g5 {[%clk 0:00:14]} 32.
Ka4 {[%clk 0:00:12]} 32... f4 {[%clk 0:00:08.1]} 33. Kb5 {[%clk 0:00:10.9]}
33... e4 {[%clk 0:00:04.4]} 34. c6 {[%clk 0:00:09.9]} 34... e3 {[%clk
0:00:04.8]} 35. fxe3 {[%clk 0:00:09.4]} 35... f3 {[%clk 0:00:04.8]} 36. e4+
{[%clk 0:00:08.5]} 36... Kxe4 {[%clk 0:00:04.2]} 37. Bc5 {[%clk 0:00:09]} 37...
g4 {[%clk 0:00:02.3]} 38. hxg4 {[%clk 0:00:08.4]} 38... Re8 {[%clk 0:00:01.2]}
39. c7 {[%clk 0:00:07.6]} 39... Re5 {[%clk 0:00:01.8]} 40. c8=Q {[%clk
0:00:07.3]} 40... f2 {[%clk 0:00:02.4]} 41. Qc6+ {[%clk 0:00:05.4]} 41... Kd3
{[%clk 0:00:02.2]} 42. Qd6+ {[%clk 0:00:05.4]} 42... Kc2 {[%clk 0:00:02.6]} 43.
Qxe5 {[%clk 0:00:05.5]} 43... f1=Q+ {[%clk 0:00:02.6]} 44. Kc6 {[%clk
0:00:04.6]} 44... Kb3 {[%clk 0:00:01.7]} 45. Qe6+ {[%clk 0:00:03.9]} 45... Kxb2
{[%clk 0:00:01.7]} 46. Bd4+ {[%clk 0:00:03.7]} 46... Kc2 {[%clk 0:00:01.8]} 47.
Qf5+ {[%clk 0:00:02.8]} 47... Qxf5 {[%clk 0:00:01.6]} 48. gxf5 {[%clk
0:00:03.7]} 48... a4 {[%clk 0:00:02.2]} 49. f6 {[%clk 0:00:04]} 49... Kd3 {[%clk
0:00:03.1]} 50. Be5 {[%clk 0:00:03.9]} 1-0

[Event "Late-Titled-Tuesday-Blitz-June-18-2024"]
[Site "Chess.com"]
[Date "2024.06.18"]
[Round "2"]
[White "MaiqMaster"]
[Black "Andrey-Ivanov2011"]
[Result "1/2-1/2"]
[WhiteElo "2448"]
[BlackElo "2121"]
[TimeControl "180+1"]
[EndTime "14:19:36 PDT"]
[Termination "Game drawn by stalemate"]

1. e4 {[%clk 0:03:00.9]} 1... c5 {[%clk 0:02:59.8]} 2. Nc3 {[%clk 0:03:01.1]}
2... d6 {[%clk 0:02:58.9]} 3. Nge2 {[%clk 0:02:57.3]} 3... Nc6 {[%clk
0:02:57.4]} 4. d4 {[%clk 0:02:57.2]} 4... cxd4 {[%clk 0:02:57.8]} 5. Nxd4 {[%clk
0:02:58.1]} 5... Nf6 {[%clk 0:02:55.3]} 6. g3 {[%clk 0:02:54.2]} 6... a6 {[%clk
0:02:53.1]} 7. Bg2 {[%clk 0:02:54.4]} 7... e5 {[%clk 0:02:51.7]} 8. Nxc6 {[%clk
0:02:48.6]} 8... bxc6 {[%clk 0:02:52.6]} 9. O-O {[%clk 0:02:48.6]} 9... Be7
{[%clk 0:02:51.2]} 10. h3 {[%clk 0:02:47]} 10... O-O {[%clk 0:02:50.9]} 11. Be3
{[%clk 0:02:46.8]} 11... Be6 {[%clk 0:02:45.8]} 12. b3 {[%clk 0:02:46.8]} 12...
Qd7 {[%clk 0:02:42.2]} 13. Na4 {[%clk 0:02:42.2]} 13... Rab8 {[%clk 0:02:22]}
14. Kh2 {[%clk 0:02:40.4]} 14... d5 {[%clk 0:02:18.3]} 15. exd5 {[%clk
0:02:35.6]} 15... cxd5 {[%clk 0:02:18.2]} 16. Bc5 {[%clk 0:02:27.9]} 16... Rfd8
{[%clk 0:01:51.9]} 17. Qd3 {[%clk 0:02:14.7]} 17... e4 {[%clk 0:01:42.5]} 18.
Qxa6 {[%clk 0:02:12]} 18... Ra8 {[%clk 0:01:39.1]} 19. Qe2 {[%clk 0:02:10.1]}
19... Bxc5 {[%clk 0:01:28.4]} 20. Nxc5 {[%clk 0:02:11]} 20... Qc6 {[%clk
0:01:27]} 21. Nxe6 {[%clk 0:02:10.9]} 21... Qxe6 {[%clk 0:01:27.9]} 22. Rfd1
{[%clk 0:02:07.6]} 22... d4 {[%clk 0:01:21.7]} 23. a4 {[%clk 0:02:06.1]} 23...
Rac8 {[%clk 0:01:13.7]} 24. a5 {[%clk 0:02:05.1]} 24... Rd6 {[%clk 0:01:10.7]}
25. a6 {[%clk 0:02:02.9]} 25... d3 {[%clk 0:01:06.8]} 26. cxd3 {[%clk
0:02:02.8]} 26... Rxa6 {[%clk 0:01:06.5]} 27. dxe4 {[%clk 0:02:00.4]} 27... Rxa1
{[%clk 0:01:04.4]} 28. Rxa1 {[%clk 0:02:01.3]} 28... Qxb3 {[%clk 0:01:04.5]} 29.
e5 {[%clk 0:01:58.8]} 29... Nd7 {[%clk 0:00:58.9]} 30. Qe4 {[%clk 0:01:43.5]}
30... Nc5 {[%clk 0:00:53.2]} 31. Qf5 {[%clk 0:01:40.1]} 31... Qe6 {[%clk
0:00:49.9]} 32. Qh5 {[%clk 0:01:21.6]} 32... h6 {[%clk 0:00:45.9]} 33. h4 {[%clk
0:01:19.2]} 33... Re8 {[%clk 0:00:44.9]} 34. Ra7 {[%clk 0:01:14.3]} 34... Nd3
{[%clk 0:00:33.6]} 35. f4 {[%clk 0:01:12.3]} 35... Nf2 {[%clk 0:00:18.6]} 36. f5
{[%clk 0:01:01.2]} 36... Qc4 {[%clk 0:00:18]} 37. e6 {[%clk 0:00:42.9]} 37...
Ng4+ {[%clk 0:00:16]} 38. Qxg4 {[%clk 0:00:35.9]} 38... Qxg4 {[%clk 0:00:16.9]}
39. exf7+ {[%clk 0:00:36]} 39... Kf8 {[%clk 0:00:16.6]} 40. fxe8=Q+ {[%clk
0:00:32]} 40... Kxe8 {[%clk 0:00:17.3]} 41. Ra5 {[%clk 0:00:28.1]} 41... Kf7
{[%clk 0:00:15.5]} 42. Rd5 {[%clk 0:00:27.4]} 42... Qc4 {[%clk 0:00:14.6]} 43.
Rd7+ {[%clk 0:00:26.7]} 43... Kf6 {[%clk 0:00:13.5]} 44. Rd5 {[%clk 0:00:23.2]}
44... Qc2 {[%clk 0:00:11.8]} 45. Kh3 {[%clk 0:00:21.6]} 45... h5 {[%clk
0:00:10.4]} 46. Kh2 {[%clk 0:00:14.2]} 46... g6 {[%clk 0:00:08.7]} 47. fxg6
{[%clk 0:00:13.4]} 47... Kxg6 {[%clk 0:00:09.6]} 48. Rg5+ {[%clk 0:00:13.5]}
48... Kh6 {[%clk 0:00:09.6]} 49. Kh3 {[%clk 0:00:13.9]} 49... Qc8+ {[%clk
0:00:09.2]} 50. Kh2 {[%clk 0:00:13.5]} 50... Qc2 {[%clk 0:00:09.9]} 51. Kh3
{[%clk 0:00:10.4]} 51... Qc8+ {[%clk 0:00:09.7]} 52. g4 {[%clk 0:00:08.6]} 52...
hxg4+ {[%clk 0:00:09.4]} 53. Rxg4 {[%clk 0:00:09.5]} 53... Kh5 {[%clk
0:00:09.2]} 54. Bf3 {[%clk 0:00:10.2]} 54... Qxg4+ {[%clk 0:00:08.9]} 55. Bxg4+
{[%clk 0:00:10.5]} 55... Kh6 {[%clk 0:00:09.8]} 56. Kg3 {[%clk 0:00:10.8]} 56...
Kh7 {[%clk 0:00:10.7]} 57. Kf4 {[%clk 0:00:11.7]} 57... Kh8 {[%clk 0:00:11.5]}
58. Kg5 {[%clk 0:00:12.6]} 58... Kg8 {[%clk 0:00:12.4]} 59. h5 {[%clk
0:00:13.5]} 59... Kh8 {[%clk 0:00:13.3]} 60. h6 {[%clk 0:00:14.4]} 60... Kg8
{[%clk 0:00:14.2]} 61. Bh5 {[%clk 0:00:15.2]} 61... Kh8 {[%clk 0:00:15.1]} 62.
Bg6 {[%clk 0:00:16.1]} 62... Kg8 {[%clk 0:00:16]} 63. Kh5 {[%clk 0:00:15.6]}
63... Kh8 {[%clk 0:00:16.9]} 64. Kg5 {[%clk 0:00:15.9]} 64... Kg8 {[%clk
0:00:17.8]} 65. Kf6 {[%clk 0:00:16.8]} 65... Kh8 {[%clk 0:00:18.7]} 66. Kf7
{[%clk 0:00:17.7]} 1/2-1/2

[Event "Late-Titled-Tuesday-Blitz-June-18-2024"]
[Site "Chess.com"]
[Date "2024.06.18"]
[Round "2"]
[White "mostafa_sakha"]
[Black "Statham_01"]
[Result "1-0"]
[WhiteElo "2416"]
[BlackElo "2699"]
[TimeControl "180+1"]
[EndTime "14:19:39 PDT"]
[Termination "mostafa_sakha won by resignation"]

1. d4 {[%clk 0:03:00.8]} 1... d5 {[%clk 0:02:03]} 2. c4 {[%clk 0:03:00.5]} 2...
Nc6 {[%clk 0:02:03.3]} 3. cxd5 {[%clk 0:02:59.8]} 3... Qxd5 {[%clk 0:02:04.2]}
4. e3 {[%clk 0:03:00.2]} 4... e5 {[%clk 0:02:04.5]} 5. Nc3 {[%clk 0:03:00]} 5...
Bb4 {[%clk 0:02:04.7]} 6. Bd2 {[%clk 0:02:59.9]} 6... Bxc3 {[%clk 0:02:05]} 7.
bxc3 {[%clk 0:03:00.8]} 7... Nf6 {[%clk 0:01:59.7]} 8. c4 {[%clk 0:02:42.7]}
8... Qd6 {[%clk 0:01:59.4]} 9. d5 {[%clk 0:02:42.5]} 9... Nb8 {[%clk 0:01:59.6]}
10. Nf3 {[%clk 0:02:32.9]} 10... Na6 {[%clk 0:01:55.2]} 11. Be2 {[%clk
0:02:31.1]} 11... Nc5 {[%clk 0:01:52.4]} 12. O-O {[%clk 0:02:29.5]} 12... a5
{[%clk 0:01:52.5]} 13. Bc3 {[%clk 0:02:29.1]} 13... Ng4 {[%clk 0:01:32.5]} 14.
h3 {[%clk 0:02:25.8]} 14... e4 {[%clk 0:01:30.7]} 15. hxg4 {[%clk 0:02:21.5]}
15... exf3 {[%clk 0:01:31]} 16. Bxf3 {[%clk 0:02:18.1]} 16... h5 {[%clk
0:01:31.6]} 17. gxh5 {[%clk 0:02:14.3]} 17... Bd7 {[%clk 0:01:22.2]} 18. e4
{[%clk 0:02:13.7]} 18... O-O-O {[%clk 0:01:13.5]} 19. e5 {[%clk 0:02:13.5]}
19... Qh6 {[%clk 0:01:13]} 20. Qd4 {[%clk 0:02:02.6]} 20... b6 {[%clk
0:01:10.8]} 21. Rfb1 {[%clk 0:01:54.6]} 21... g6 {[%clk 0:01:03.3]} 22. Bd2
{[%clk 0:01:50.5]} 22... Qg7 {[%clk 0:00:58.3]} 23. Bg5 {[%clk 0:01:42.8]} 23...
gxh5 {[%clk 0:00:49.7]} 24. Bxd8 {[%clk 0:01:40.4]} 24... Rxd8 {[%clk
0:00:49.5]} 25. Rd1 {[%clk 0:01:29.5]} 25... Bg4 {[%clk 0:00:47.8]} 26. e6
{[%clk 0:01:15.5]} 26... f6 {[%clk 0:00:34.2]} 27. Bxg4 {[%clk 0:01:12.6]} 27...
hxg4 {[%clk 0:00:35.1]} 28. Qf4 {[%clk 0:01:04.3]} 28... g3 {[%clk 0:00:30.2]}
29. Qxg3 {[%clk 0:01:01.3]} 29... Qh7 {[%clk 0:00:30.5]} 30. Qh3 {[%clk
0:00:57.1]} 30... Qe7 {[%clk 0:00:27.6]} 31. g3 {[%clk 0:00:56.2]} 31... Ne4
{[%clk 0:00:24.7]} 32. Qf5 {[%clk 0:00:53.6]} 32... Ng5 {[%clk 0:00:21.1]} 33.
Kg2 {[%clk 0:00:53.3]} 33... Kb8 {[%clk 0:00:20.6]} 34. Rac1 {[%clk 0:00:50.6]}
34... Qc5 {[%clk 0:00:19.9]} 35. f4 {[%clk 0:00:48.1]} 35... Qe3 {[%clk
0:00:07.2]} 36. fxg5 {[%clk 0:00:46.4]} 36... Rg8 {[%clk 0:00:04.7]} 37. Qxf6
{[%clk 0:00:43.6]} 37... Rxg5 {[%clk 0:00:04.2]} 38. Qf3 {[%clk 0:00:25.4]}
38... Qe5 {[%clk 0:00:04.8]} 39. Re1 {[%clk 0:00:23.8]} 39... Qh8 {[%clk
0:00:03.4]} 40. e7 {[%clk 0:00:23]} 40... Rg8 {[%clk 0:00:02.8]} 41. Qf7 {[%clk
0:00:16.9]} 41... Re8 {[%clk 0:00:03]} 42. Re2 {[%clk 0:00:13.7]} 42... Ka7
{[%clk 0:00:03.4]} 43. Rce1 {[%clk 0:00:12.7]} 43... a4 {[%clk 0:00:03.5]} 44.
Rf1 {[%clk 0:00:12]} 44... a3 {[%clk 0:00:03.3]} 45. Qxe8 {[%clk 0:00:12.2]}
45... Qxe8 {[%clk 0:00:03.6]} 46. Rf8 {[%clk 0:00:12.6]} 46... Qa4 {[%clk
0:00:02.3]} 47. e8=Q {[%clk 0:00:12]} 47... Qxe8 {[%clk 0:00:02.7]} 1-0